Cogmind - Beta 17 @@@ ROGUE MODE // 2026.07.11 @ 17:27:30 Player: Toddbert Result: Destroyed by as-57070 with Assembled Maul Performance ------------- Evolutions (0) 0 Regions Visited (2) 400 Robots Destroyed (4) 20 Value Destroyed (40) 40 Prototype IDs (0) 0 Alien Tech Used (0) 0 Bonus (0) 0 TOTAL SCORE: 460 Bonus ------- None Cogmind --------- Core Integrity 0/250 Matter 277/300 Energy 80/125 System Corruption 4% Temperature Cool (0) Movement Rolling (130) Ox2 Location -10/Mines Parts ------- > --- POWER (1) -------- Light Ion Engine > --- PROPULSION (2) --- Compact Wheel Compact Wheel > --- UTILITY (2) ------ Huge Storage Unit > --- WEAPON (2) ------- Light Assault Rifle > --- INVENTORY (25) --- Light Treads Light Treads Compact Wheel Small Laser Assault Rifle Peak State ------------ > --- POWER ------------ Light Ion Engine > --- PROPULSION ------- Aluminum Leg Aluminum Leg > --- UTILITY ---------- Small Storage Unit Propulsion Shielding > --- WEAPON ----------- Medium Laser Light Assault Rifle > --- INVENTORY -------- Light Ion Engine Light Treads Light Treads Small Laser Assault Rifle [Rating: 7] Favorites ----------- Power Light Ion Engine Engine Light Ion Engine Propulsion Aluminum Leg Leg Aluminum Leg Wheel Compact Wheel Utility Propulsion Shielding Storage Huge Storage Unit Protection Propulsion Shielding Weapon Light Assault Rifle Energy Gun Medium Laser Ballistic Gun Light Assault Rifle Build | -11 -10 -10 ------- Run | Yrd Mat Min Slots Evolved . | . . . Power . | . . . Propulsion . | . . . Utility . | . . . Weapon . | . . . Parts Attached 14 | 6 5 3 Power 3 | 1 1 1 Engine 3 | 1 1 1 Core . | . . . Reactor . | . . . Propulsion 5 | 2 2 1 Treads . | . . . Leg 2 | 2 . . Wheel 3 | . 2 1 Hover . | . . . Flight . | . . . Utility 3 | 1 2 . Device . | . . . Storage 2 | 1 1 . Processor . | . . . Hackware . | . . . Protection 1 | . 1 . Artifact . | . . . Weapon 3 | 2 . 1 Energy Gun 1 | 1 . . Energy Cannon . | . . . Ballistic Gun 2 | 1 . 1 Ballistic Cannon . | . . . Launcher . | . . . Special Weapon . | . . . Impact Weapon . | . . . Slashing Weapon . | . . . Piercing Weapon . | . . . Special Melee Weapon . | . . . Unidentified Prototypes . | . . . Parts Lost 6 | . 1 5 Power 2 | . 1 1 Propulsion 1 | . . 1 Utility 1 | . . 1 Weapon 2 | . . 2 Highest Loss Streak 5 | . 1 5 To Critical Strikes . | . . . Average Backups 5 | 1 5 7 Power . | . . 1 Propulsion 2 | . 2 4 Utility . | . . . Weapon 2 | . 2 2 Tool/Special . | . . . Unused Backups 6 | . 1 5 Power . | . . . Propulsion 3 | . . 3 Utility . | . . . Weapon 3 | . 1 2 Tool/Special . | . . . Average Slot Usage (%) 96 | . 96 96 Engine 13 | . 13 12 Leg 15 | . 20 . Wheel 12 | . 7 26 Storage 13 | . 13 14 Protection 12 | . 11 13 Energy Gun 14 | . 14 14 Ballistic Gun 14 | . 14 14 Peak Build Rating 7 | 6 7 7 Average Rating 6 | 4 6 6 On Entrance 4 | . 6 7 Avg Prop Armor Cover (%) . | . . . Naked Turns . | . . . Heaviest Build 87 | 11 87 87 Greatest Support 32 | 20 32 32 Greatest Overweight (x) 5 | 3 4 5 Average Overweight (x) 1 | . 1 2 Largest Inventory Capacity 25 | 8 25 25 Average Capacity 20 | 7 19 25 Most Carried 9 | 4 9 8 Average Carried 5 | 1 5 7 Final Capacity 25 | 8 25 25 Final Carried 8 | 4 8 5 Class Distribution -------------------- 100% | Mutant Dominant Class ---------------- Mutant | -10/Materials Mutant | -10/Mines Resources | -11 -10 -10 ----------- Run | Yrd Mat Min Matter Collected 324 | 258 35 31 Remotely . | . . . Salvage Created 61 | . 61 . Parts 7 | . 7 . Haulers Intercepted . | . . . Recyclers Shooed . | . . . Parts Field Recycled . | . . . Retrieved Matter . | . . . Parts Self-Destructed . | . . . Prevented . | . . . Parts Restored . | . . . Kills | -11 -10 -10 ------- Run | Yrd Mat Min Combat Hostiles Destroyed 4 | . 4 . Guns 4 | . 4 . Classes Destroyed 1 | . 1 . Swarmer 4 | . 4 . Best Kill Streak 3 | . 3 . Combat Bots Only 3 | . 3 . Max Kills in Single Turn 1 | . 1 . Gunslinging . | . . . Exploded . | . . . Melee . | . . . Uniques/NPCs Destroyed . | . . . Combat | -11 -10 -10 -------- Run | Yrd Mat Min Hostile Shots Fired 74 | . 59 15 Missed 17 | . 15 2 Hits 57 | . 44 13 Melee 3 | . . 3 Projectile 54 | . 44 10 AOE 5 | . . 5 Damage Taken 682 | . 357 325 Core 252 | . 136 116 Absorbed by Shields . | . . . Redirected to Shielding 27 | . 10 17 Core Remaining (%) 100 | 100 . . Volleys Fired 14 | . 11 3 Largest 2 | . 2 2 Hottest 70 | . 70 70 Shots Fired 28 | . 22 6 Gun 28 | . 22 6 Cannon . | . . . Launcher . | . . . Special . | . . . Kinetic 14 | . 11 3 Thermal 14 | . 11 3 Explosive . | . . . Electromagnetic . | . . . Robot Hit Streak 5 | . 3 5 Robot Miss Streak 2 | . 2 1 Penetration Max . | . . . Secondary Targets 2 | . 2 . Max Gunslinging Chain 1 | . 1 . Shots Hit Robots 16 | . 11 5 Core Hits 5 | . 5 . Critical Kills . | . . . Critical Parts Destroyed . | . . . Critical Strikes . | . . . Melee Attacks . | . . . Impact . | . . . Slashing . | . . . Piercing . | . . . Sneak Attacks . | . . . Combat Hostiles . | . . . Follow-up Attacks . | . . . Damage Inflicted 191 | . 140 51 Guns 178 | . 127 51 Cannons . | . . . Explosions . | . . . Melee . | . . . Ramming 13 | . 13 . Kinetic 51 | . 26 25 Thermal 127 | . 101 26 Explosive . | . . . Electromagnetic . | . . . Impact . | . . . Slashing . | . . . Piercing . | . . . Highest Corruption 4 | . . 4 Average Corruption 4 | . . 4 Corruption Purged . | . . . Corruption Blocked . | . . . Overload Shots . | . . . Overflow Damage . | . . . Projectiles . | . . . Explosions . | . . . Melee . | . . . Knockbacks . | . . . Impact . | . . . Kinetic . | . . . Secondary . | . . . Self-Inflicted Damage . | . . . Shots . | . . . Rammed . | . . . Targets Rammed 1 | . 1 . Kicked 1 | . 1 . Crushed . | . . . Highest Temperature 50 | . 50 20 Average Temperature 23 | . 24 15 Received Heat Transfer 9 | . 9 . Siege Activations . | . . . Martial Activations . | . . . Shielding Activations . | . . . Robots Disrupted . | . . . Combat Hostiles . | . . . Robots Corrupted . | . . . Combat Hostiles . | . . . Parts Fried . | . . . Impact Corruptions . | . . . Robots Melted . | . . . Combat Hostiles . | . . . Parts Melted . | . . . Heat Transferred 370 | . 296 74 Parts Sabotaged . | . . . Parts Stolen . | . . . Parts Stripped . | . . . Power Chain Reactions . | . . . Alert | -11 -10 -10 ------- Run | Yrd Mat Min Maximum Alert Level . | . . . Low Security (%) 100 | 100 100 100 Level 1 . | . . . Level 2 . | . . . Level 3 . | . . . Level 4 . | . . . Level 5 . | . . . High Security . | . . . Max Security . | . . . Peak Influence 70 | . 70 9 Initial 9 | . . 9 Average 9 | . 13 . Influence Increases 92 | . 92 . Destroy 0b10 Robot/C 80 | . 80 . Destroy Leader 10 | . 10 . Successful Hack 2 | . 2 . Influence Decreases 92 | . 66 26 Entered New Map 17 | . . 17 Time Decay 75 | . 66 9 Squads Dispatched . | . . . Investigation . | . . . Extermination . | . . . Reinforcement . | . . . Assault . | . . . Garrison . | . . . Intercept . | . . . Searches Triggered . | . . . Construction Impeded . | . . . Haulers Reinforced . | . . . Active Scanning Responses . | . . . Cargo Convoy Interrupts . | . . . Stealth | -11 -10 -10 --------- Run | Yrd Mat Min Distress Signals 2 | . 2 . Communications Jammed . | . . . Distress Signals . | . . . Times Spotted 30 | . 11 19 Peak Tracking Total 15 | . 4 15 Tactical Retreats . | . . . Traps | -11 -10 -10 ------- Run | Yrd Mat Min Traps Triggered . | . . . Indirectly . | . . . Trap Hack Attempts . | . . . Triggered . | . . . Disarmed . | . . . Reprogrammed . | . . . Reused . | . . . Traps Extracted . | . . . Installed . | . . . Triggered . | . . . Machines | -11 -10 -10 ---------- Run | Yrd Mat Min Machines Disabled . | . . . Max in Single Turn . | . . . Machines Repaired . | . . . Machines Dismantled . | . . . Machines Sabotaged . | . . . Overloaded Fab Kills . | . . . Hacking | -11 -10 -10 --------- Run | Yrd Mat Min Machines Accessed 2 | . 2 . Terminals 2 | . 2 . Fabricators . | . . . Repair Stations . | . . . Recycling Units . | . . . Scanalyzers . | . . . Garrison Access . | . . . Total Hacks 4 | . 4 . Successful 2 | . 2 . Failed 2 | . 2 . Catastrophic 2 | . 2 . Database Lockouts . | . . . Manual . | . . . Terminals 4 | . 4 . Fabricators . | . . . Repair Stations . | . . . Recycling Units . | . . . Scanalyzers . | . . . Garrison Access . | . . . Terminal Hacks 2 | . 2 . Record 2 | . 2 . Fabricator Hacks . | . . . Repair Station Hacks . | . . . Recycling Unit Hacks . | . . . Scanalyzer . | . . . Garrison Access Hacks . | . . . Unauthorized Hacks . | . . . Terminals . | . . . Fabricators . | . . . Repair Stations . | . . . Recycling Units . | . . . Scanalyzers . | . . . Garrison Access . | . . . Data Cores Recovered . | . . . Used . | . . . Hacking Detections 1 | . 1 . Full Trace Events 1 | . 1 . Feedback Events . | . . . Feedback Blocked . | . . . Robot Schematics Acquired . | . . . Robots Built . | . . . Authchips . | . . . Time . | . . . Total Robot Build Rating . | . . . Part Schematics Acquired . | . . . Parts Built . | . . . Authchips . | . . . Time . | . . . Total Part Build Rating . | . . . Part Studies Acquired . | . . . Parts Repaired . | . . . Time . | . . . Parts Recycled . | . . . Recycled Matter . | . . . Retrieved Matter . | . . . Retrieved Components . | . . . Parts Scanalyzed . | . . . Part Schematics Acquired . | . . . Parts Damaged . | . . . Bothacking | -11 -10 -10 ------------ Run | Yrd Mat Min Used RIF Installer . | . . . Robots Hacked . | . . . Non-combat . | . . . Combat . | . . . Robot Hacks Applied . | . . . Relay Couplers Released . | . . . Fabnet Peak Effective % . | . . . Robots Rewired . | . . . Allies Hacked . | . . . Hacks Repelled . | . . . Allies | -11 -10 -10 -------- Run | Yrd Mat Min Total Allies . | . . . Largest Group . | . . . Highest-Rated Group . | . . . Highest-Rated Ally . | . . . Total Orders . | . . . Ally Attacks . | . . . Total Damage . | . . . Kills . | . . . Allies Corrupted . | . . . Allies Melted . | . . . Intel | -11 -10 -10 ------- Run | Yrd Mat Min Active Infowar (turns) . | . . . Robot Analysis Total . | . . . Derelict Logs Recovered 1 | . . 1 Drone Launches . | . . . Drone Recoveries . | . . . Exploration | -11 -10 -10 ------------- Run | Yrd Mat Min Turns Passed 892 | 70 599 223 Spaces Moved 512 | 49 301 162 Core 18 | 17 1 . Treads . | . . . Legs 224 | 32 192 . Wheels 270 | . 108 162 Hover . | . . . Flight . | . . . Fastest Speed 50 | 50 100 130 Average Speed 159 | 117 181 130 Slowest Speed 400 | 200 400 175 Overloaded Moves . | . . . Propulsion Burnouts . | . . . Robots Hopped . | . . . Potential Cave-ins . | . . . Cave-ins Triggered . | . . . Exploration Rate (%) 24 | 3 32 39 Regions Visited 2 Branch Regions 1 Pre-discovered Areas 1 | . . 1 Known Exits Taken . | . . . Unknown Exits Taken 2 | 1 1 . Scrap Searched 1 | . . 1 Spaces Dug . | . . . Terrain Destroyed . | . . . Melee . | . . . Projectile . | . . . AOE . | . . . Terrain Rammed . | . . . Walls Destroyed . | . . . Machines Disabled . | . . . Actions | -11 -10 -10 --------- Run | Yrd Mat Min Total 557 | 58 331 168 Wait . | . . . Move 510 | 48 300 162 Hop . | . . . Pick Up 11 | 4 7 . Fast Attach 12 | 6 6 . Attach 3 | . . 3 Detach 1 | . 1 . Swap . | . . . Drop 5 | . 5 . Fire 14 | . 11 3 Melee . | . . . Ram . | . . . Kick 1 | . 1 . Crush . | . . . Escape Stasis . | . . . Rewire . | . . . Trap . | . . . Miscellaneous . | . . . Route ------- -11/Scrapyard -10/Materials -10/Mines (discovered 1 exit: [*Mat]) History --------- Turn | Location | Event 32 | -11/Scrapyard | Discovered new exit (range 15) 71 | -11/Scrapyard | Entered Materials 201 | -10/Materials | Discovered new exit (range 16) 309 | -10/Materials | Build established: Mutant 498 | -10/Materials | Core integrity fell below 50% 670 | -10/Materials | Entered Mines 703 | -10/Mines | Found a damaged Exp. Sensor Array with a note attached 756 | -10/Mines | Discovered new exit (range 11) 776 | -10/Mines | Learned location of Zion (-6) 846 | -10/Mines | Assembled infested the area 883 | -10/Mines | Core integrity fell below 20% 893 | -10/Mines | Destroyed by as-57070 with Assembled Maul Last Messages --------------- T-07 Excavator destroyed. Com. Wheel destroyed. as-60033 destroyed. as-74127 destroyed. as-10009 destroyed. The unstable cave ceiling collapses. as-01794 destroyed. as-45821 destroyed. as-43258 destroyed. as-60421 destroyed. as-40524 destroyed. The unstable cave ceiling collapses. D-53 Grenadier destroyed. as-46931 destroyed. as-55104 destroyed. The unstable cave ceiling collapses. Propulsion Shielding destroyed. System corrupted by crushing effect (+4). The unstable cave ceiling collapses. Med. Laser destroyed. Map ----- +----------------------------------------------------+ | ?????????????????????????????????????????????????? | | ?????????????????????????????????????????????????? | | ?????????????????????????????????????????????????? | | ?????????????????????????????????????????????????? | | ?????????????????????????????????????????????????? | | ?????????????????????????????????????????????????? | | ?????????????????????????????????????????????????? | | ?????????????????????????????????????????????????? | | ?????????????????????????????????????????????????? | | ?????????????????????????????????????????????????? | | ?????????????????????????????????????????????????? | | ?????????????????????????????????????????????????? | | ?????????????????????????????????????????????????? | | ?????????????????????????????????????????????????? | | ???????????????????##????????????????????????????? | | ???????????????????? ????????????????????????????? | | ????????????????????# ????##?????????????????????? | | ????????????????????# #### ####??????????????????? | | ????????????????????? !%!% ???????????????????? | | ?????????????????????##|* ##?????????????""????? | | ?????????????????##### # #????????????? ????? | | ??????????????## # ##???????????? #????? | | ???????????#%## #??????????## #????? | | ???????????# a a= < #??????????# ????? | | ??????????????# a a # ##??????????# ????? | | ??????????????# % @ ##?????????? #????? | | ?????????????# %!#??????????# #????? | | ?????????????# a # #/#??????????# #????? | | ?????????????# ##### #??????????# #????? | | ?????????????# # # ##????# #??????????# #????? | | ???????????? ??##?###??????# #??#####??## ##???? | | ???????????????????????????## #### #### ##### | | ??????????????????????????## ## ## | | ?????????????????????????## | | ????????????????????????## """ ###### | | ???????????????????????## """ #????? | | ??????????????????????## """ ##????? | | ?????????????????????## ##?????? | | ?????????????????????# #??????? | | ?????????????????????# #?????? | | ?????????????????????# ##### ? | | ?????????????????????## #????## ## # | | ??????????????????????# ??????######## ##### | | ??????????????????????# ??????????????## ###???? | | ??????????????????????# ???????????????#####?????? | | ??????????????????????#??????????????????????????? | | ?????????????????????????????????????????????????? | | ?????????????????????????????????????????????????? | | ?????????????????????????????????????????????????? | | ?????????????????????????????????????????????????? | +----------------------------------------------------+ Best States ------------- Heat Dissipation 25 Energy Generation 10 Energy Capacity 125 Matter Stores 300 Matter Capacity 300 Sight Range 16 Terrain Scan Density 10 Propulsion Shielding 33 Evasion (%) 55 Item Schematics ----------------- None Robot Schematics ------------------ None Fabricated ------------ Nothing Repaired ---------- Nothing Studied --------- None Alien Tech Used ----------------- None Achievements -------------- None Challenges ------------ None Game ------ Seed ScrapoidSubatomicNetwork Manual? 0 Play Time 00:09:49 Cumulative 9.6 hours Start 2026.07.11 @ 17:18:52 End 2026.07.11 @ 17:27:30 Sessions 1 Manual Loads 0 Difficulty Rogue Special Mode None Game No. 28 Rogue 28 Adventurer 0 Explorer 0 Win Type - Total 0 Types 0/0/0/0/0/0/0/0/0/0 Lore% 11 Gallery% 8 Achievement% 10 Wizard Run 0 Options --------- Layout 1 ASCII 1 Keyboard 0 Movement Arrows Keybinds 0 Fullscreen 1 Font 24/Smallcaps Map View 50x40 Zoom Use 0% Tactical HUD 0 Map Filters NONE Filters NONE Steam 1 RUN: e19c3bef-9a69-47bd-856d-18f035f2e9d1